Cogmind - Beta 16 @@@ ROGUE MODE // 2026.01.18 @ 19:42:24 Player: K0T Result: Destroyed by G-47 Trooper with Particle Gun Performance ------------- Evolutions (0) 0 Regions Visited (1) 200 Robots Destroyed (17) 85 Value Destroyed (451) 451 Prototype IDs (0) 0 Alien Tech Used (0) 0 Bonus (0) 0 TOTAL SCORE: 736 Bonus ------- None Cogmind --------- Core Integrity 0/250 Matter 209/300 Energy 250/250 System Corruption 1% Temperature Cool (9) Movement Treading (160) Location -10/Materials Parts ------- > --- POWER (1) -------- Ion Engine > --- PROPULSION (2) --- Light Treads Light Treads > --- UTILITY (2) ------ Improved Heat Sink Medium Storage Unit > --- WEAPON (2) ------- Light Cannon > --- INVENTORY (10) --- Light Ion Engine Light Treads Small Laser Light Assault Rifle Light Assault Rifle Grenade Launcher Mining Claw Peak State ------------ > --- POWER ------------ Ion Engine > --- PROPULSION ------- Light Treads Light Treads > --- UTILITY ---------- Improved Heat Sink Small Storage Unit > --- WEAPON ----------- Small Laser Assault Rifle > --- INVENTORY -------- Ion Engine Light Ion Engine Light Treads Light Assault Rifle Grenade Launcher [Rating: 9] Favorites ----------- Power Ion Engine Engine Ion Engine Propulsion Light Treads Treads Light Treads Utility Improved Heat Sink Device Improved Heat Sink Storage Small Storage Unit Weapon Small Laser Energy Gun Small Laser Ballistic Gun Assault Rifle Ballistic Cannon Light Cannon Build | -11 -10 ------- Run | Yrd Mat Slots Evolved . | . . Power . | . . Propulsion . | . . Utility . | . . Weapon . | . . Parts Attached 12 | 5 7 Power 3 | . 3 Engine 3 | . 3 Core . | . . Reactor . | . . Propulsion 3 | 2 1 Treads 3 | 2 1 Leg . | . . Wheel . | . . Hover . | . . Flight . | . . Utility 3 | 1 2 Device 1 | . 1 Storage 2 | 1 1 Processor . | . . Hackware . | . . Protection . | . . Artifact . | . . Weapon 3 | 2 1 Energy Gun 1 | 1 . Energy Cannon . | . . Ballistic Gun 1 | 1 . Ballistic Cannon 1 | . 1 Launcher . | . . Special Weapon . | . . Impact Weapon . | . . Slashing Weapon . | . . Piercing Weapon . | . . Special Melee Weapon . | . . Unidentified Prototypes . | . . Parts Lost 4 | . 4 Power 2 | . 2 Propulsion . | . . Utility . | . . Weapon 2 | . 2 Highest Loss Streak 1 | . 1 To Critical Strikes . | . . Average Backups 5 | 3 5 Power 1 | 1 1 Propulsion . | . . Utility . | . . Weapon 3 | 1 3 Tool/Special . | . . Unused Backups 7 | . 7 Power 1 | . 1 Propulsion 1 | . 1 Utility . | . . Weapon 5 | . 5 Tool/Special . | . . Average Slot Usage (%) 95 | . 95 Engine 12 | . 12 Treads 28 | . 28 Device 12 | . 12 Storage 14 | . 14 Energy Gun 13 | . 13 Ballistic Gun 10 | . 10 Ballistic Cannon 2 | . 2 Peak Build Rating 9 | 5 9 Average Rating 8 | 3 8 On Entrance 2 | . 5 Avg Prop Armor Cover (%) . | . . Naked Turns . | . . Heaviest Build 20 | 8 20 Greatest Support 40 | 40 40 Greatest Overweight (x) 1 | 1 . Average Overweight (x) . | . . Largest Inventory Capacity 10 | 8 10 Average Capacity 8 | 7 8 Most Carried 8 | 6 8 Average Carried 5 | 3 5 Final Capacity 10 | 8 10 Final Carried 7 | 3 7 Class Distribution -------------------- 100% | Mutant Dominant Class ---------------- Mutant | -10/Materials Resources | -11 -10 ----------- Run | Yrd Mat Matter Collected 465 | 159 306 Remotely . | . . Salvage Created 532 | . 532 Parts 40 | . 40 Haulers Intercepted 1 | . 1 Recyclers Shooed . | . . Parts Field Recycled . | . . Retrieved Matter . | . . Parts Self-Destructed . | . . Prevented . | . . Parts Restored . | . . Kills | -11 -10 ------- Run | Yrd Mat Combat Hostiles Destroyed 16 | . 16 Guns 14 | . 14 Cannons 2 | . 2 Classes Destroyed 3 | . 3 Hauler 1 | . 1 Swarmer 6 | . 6 Grunt 10 | . 10 Best Kill Streak 4 | . 4 Combat Bots Only 3 | . 3 Max Kills in Single Turn 2 | . 2 Gunslinging 1 | . 1 Exploded . | . . Melee . | . . Uniques/NPCs Destroyed . | . . Combat | -11 -10 -------- Run | Yrd Mat Hostile Shots Fired 110 | . 110 Missed 31 | . 31 Hits 79 | . 79 Projectile 79 | . 79 Critical Strikes 1 | . 1 Damage Taken 968 | . 968 Core 255 | . 255 Absorbed by Shields . | . . Core Remaining (%) 100 | 100 . Volleys Fired 78 | . 78 Largest 2 | . 2 Hottest 70 | . 70 Shots Fired 131 | . 131 Gun 107 | . 107 Cannon 24 | . 24 Launcher . | . . Special . | . . Kinetic 72 | . 72 Thermal 59 | . 59 Explosive . | . . Electromagnetic . | . . Robot Hit Streak 10 | . 10 Robot Miss Streak 5 | . 5 Penetration Max . | . . Secondary Targets 2 | . 2 Max Gunslinging Chain 1 | . 1 Shots Hit Robots 79 | . 79 Core Hits 29 | . 29 Critical Kills . | . . Critical Parts Destroyed . | . . Critical Strikes . | . . Melee Attacks . | . . Impact . | . . Slashing . | . . Piercing . | . . Sneak Attacks . | . . Combat Hostiles . | . . Follow-up Attacks . | . . Damage Inflicted 1025 | . 1025 Guns 720 | . 720 Cannons 305 | . 305 Explosions . | . . Melee . | . . Ramming . | . . Kinetic 640 | . 640 Thermal 385 | . 385 Explosive . | . . Electromagnetic . | . . Impact . | . . Slashing . | . . Piercing . | . . Highest Corruption 1 | . 1 Average Corruption 1 | . 1 Corruption Purged . | . . Corruption Blocked . | . . Effects 4 | . 4 Matter Fused 2 | . 2 Heat Flow Errors 1 | . 1 Data Loss (minor) 1 | . 1 Overload Shots . | . . Overflow Damage 7 | . 7 Projectiles 7 | . 7 Explosions . | . . Melee . | . . Knockbacks 3 | . 3 Impact . | . . Kinetic 3 | . 3 Secondary . | . . Self-Inflicted Damage . | . . Shots . | . . Rammed . | . . Targets Rammed . | . . Kicked . | . . Crushed . | . . Highest Temperature 121 | . 121 Average Temperature 44 | . 44 Received Heat Transfer 483 | . 483 Siege Activations . | . . Martial Activations . | . . Shielding Activations . | . . Robots Disrupted . | . . Combat Hostiles . | . . Robots Corrupted . | . . Combat Hostiles . | . . Parts Fried . | . . Impact Corruptions . | . . Robots Melted . | . . Combat Hostiles . | . . Parts Melted . | . . Heat Transferred 875 | . 875 Parts Sabotaged . | . . Parts Stolen . | . . Parts Stripped . | . . Power Chain Reactions . | . . Alert | -11 -10 ------- Run | Yrd Mat Maximum Alert Level . | . . Low Security (%) 100 | 100 100 Level 1 . | . . Level 2 . | . . Level 3 . | . . Level 4 . | . . Level 5 . | . . High Security . | . . Max Security . | . . Peak Influence 122 | . 122 Initial . | . . Average 45 | . 48 Influence Increases 487 | . 487 Destroy 0b10 Robot/C 320 | . 320 Destroy 0b10 Robot/NC 5 | . 5 Destroy Leader 72 | . 72 Successful Hack 12 | . 12 Disable Machine 15 | . 15 Destroy Structure 3 | . 3 Partial Spotted 15 | . 15 Lose Combat Pursuer 45 | . 45 Influence Decreases 395 | . 395 Time Decay 355 | . 355 Lost Part 40 | . 40 Squads Dispatched 2 | . 2 Investigation . | . . Extermination . | . . Reinforcement 2 | . 2 Assault . | . . Garrison . | . . Intercept . | . . Searches Triggered . | . . Construction Impeded . | . . Haulers Reinforced . | . . Active Scanning Responses . | . . Cargo Convoy Interrupts . | . . Stealth | -11 -10 --------- Run | Yrd Mat Distress Signals 1 | . 1 Communications Jammed . | . . Distress Signals . | . . Times Spotted 30 | . 30 Peak Tracking Total 4 | . 4 Tactical Retreats 2 | . 2 Traps | -11 -10 ------- Run | Yrd Mat Traps Triggered 1 | . 1 Indirectly . | . . Trap Hack Attempts . | . . Triggered . | . . Disarmed . | . . Reprogrammed . | . . Reused . | . . Traps Extracted . | . . Installed . | . . Triggered . | . . Machines | -11 -10 ---------- Run | Yrd Mat Machines Disabled 1 | . 1 Max in Single Turn 1 | . 1 Machines Repaired . | . . Machines Dismantled . | . . Machines Sabotaged . | . . Overloaded Fab Kills . | . . Hacking | -11 -10 --------- Run | Yrd Mat Machines Accessed 6 | . 6 Terminals 6 | . 6 Fabricators . | . . Repair Stations . | . . Recycling Units . | . . Scanalyzers . | . . Garrison Access . | . . Total Hacks 17 | . 17 Successful 8 | . 8 Failed 9 | . 9 Catastrophic . | . . Database Lockouts . | . . Manual 17 | . 17 Terminals 17 | . 17 Fabricators . | . . Repair Stations . | . . Recycling Units . | . . Scanalyzers . | . . Garrison Access . | . . Terminal Hacks . | . . Fabricator Hacks . | . . Repair Station Hacks . | . . Recycling Unit Hacks . | . . Scanalyzer . | . . Garrison Access Hacks . | . . Unauthorized Hacks 8 | . 8 Terminals 8 | . 8 Botnet 4 | . 4 Skim 4 | . 4 Fabricators . | . . Repair Stations . | . . Recycling Units . | . . Scanalyzers . | . . Garrison Access . | . . Data Cores Recovered . | . . Used . | . . Hacking Detections 6 | . 6 Full Trace Events . | . . Feedback Events . | . . Feedback Blocked . | . . Robot Schematics Acquired . | . . Robots Built . | . . Authchips . | . . Time . | . . Total Robot Build Rating . | . . Part Schematics Acquired . | . . Parts Built . | . . Authchips . | . . Time . | . . Total Part Build Rating . | . . Part Studies Acquired . | . . Parts Repaired . | . . Time . | . . Parts Recycled . | . . Recycled Matter . | . . Retrieved Matter . | . . Retrieved Components . | . . Parts Scanalyzed . | . . Part Schematics Acquired . | . . Parts Damaged . | . . Bothacking | -11 -10 ------------ Run | Yrd Mat Used RIF Installer . | . . Robots Hacked . | . . Non-combat . | . . Combat . | . . Robot Hacks Applied . | . . Relay Couplers Released . | . . Fabnet Peak Effective % . | . . Robots Rewired . | . . Allies Hacked . | . . Hacks Repelled . | . . Allies | -11 -10 -------- Run | Yrd Mat Total Allies . | . . Largest Group . | . . Highest-Rated Group . | . . Highest-Rated Ally . | . . Total Orders . | . . Ally Attacks . | . . Total Damage . | . . Kills . | . . Allies Corrupted . | . . Allies Melted . | . . Intel | -11 -10 ------- Run | Yrd Mat Active Infowar (turns) . | . . Robot Analysis Total . | . . Derelict Logs Recovered . | . . Drone Launches . | . . Drone Recoveries . | . . Exploration | -11 -10 ------------- Run | Yrd Mat Turns Passed 1232 | 54 1178 Spaces Moved 608 | 41 567 Core 21 | 21 . Treads 587 | 20 567 Legs . | . . Wheels . | . . Hover . | . . Flight . | . . Fastest Speed 50 | 50 160 Average Speed 156 | 104 160 Slowest Speed 160 | 160 160 Overloaded Moves . | . . Propulsion Burnouts . | . . Robots Hopped . | . . Potential Cave-ins . | . . Cave-ins Triggered . | . . Exploration Rate (%) 44 | 3 85 Regions Visited 1 Branch Regions . Pre-discovered Areas . | . . Known Exits Taken . | . . Unknown Exits Taken 1 | 1 . Scrap Searched . | . . Spaces Dug . | . . Terrain Destroyed . | . . Melee . | . . Projectile . | . . AOE . | . . Terrain Rammed . | . . Walls Destroyed . | . . Machines Disabled . | . . Actions | -11 -10 --------- Run | Yrd Mat Total 757 | 51 706 Wait 41 | . 41 Move 607 | 40 567 Hop . | . . Pick Up 17 | 6 11 Fast Attach 2 | 2 . Attach 8 | 3 5 Detach . | . . Swap 2 | . 2 Drop 2 | . 2 Fire 78 | . 78 Melee . | . . Ram . | . . Kick . | . . Crush . | . . Escape Stasis . | . . Rewire . | . . Trap . | . . Miscellaneous . | . . Route ------- -11/Scrapyard -10/Materials (discovered 5 exits: [*Mat x2] / [*Min x2] / [*Sub]) History --------- Turn | Location | Event 11 | -11/Scrapyard | Discovered new exit (range 15) 55 | -11/Scrapyard | Entered Materials 135 | -10/Materials | Discovered new exit (range 16) 316 | -10/Materials | Build established: Mutant 359 | -10/Materials | Discovered new exit (range 12) 424 | -10/Materials | Discovered new exit (range 5) 659 | -10/Materials | Discovered new exit (range 12) 881 | -10/Materials | Core integrity fell below 50% 955 | -10/Materials | Derelicts attacked the area 1078 | -10/Materials | Discovered new exit (range 12) 1215 | -10/Materials | Core integrity fell below 20% 1233 | -10/Materials | Destroyed by G-47 Trooper with Particle Gun Last Messages --------------- reinforcements to Terminal M002. 00931_ O-16 Technician locks terminal. 00934_ Atomic Centrifuge disabled. 00955_ ALERT: Derelict incursion detected, dispatching patrols to target area. 00976_ Assault Rifle destroyed. 00986_ G-34 Mercenary destroyed. 00992_ Acquired Sml. Laser. 01028_ System corrupted: Matter fused (-9). 01078_ EXIT=FOUND 01079_ System corrupted: Component data lost. 01134_ Acquired 32 matter. 01178_ O-16 Technician knocked back. 01181_ Destroyed Hover Unit. 01189_ G-47 Trooper destroyed. 01199_ Sml. Laser destroyed. 01201_ G-34 Mercenary destroyed. 01209_ G-47 Trooper knocked back. 01217_ Destroyed Lgt. Nuclear Core. 01227_ G-47 Trooper knocked back. Map ----- +----------------------------------------------------+ | #???# """ #???????????????????????????? | | #???#= """ #???????????????????????????? | | #???# #######?????????????????????? | | ###########+## #?????????????????????? | | #?????????????????????? | | #?????????????????????? | | #?????????????????????? | | #?????????????????????? | | #?????????????????????? | | #?????????????????????? | | #?????????????????????? | | ######### #?????????????????????? | | # # #?????????????????????? | | #?????????????????????? | | < #?????????????????????? | | #?????????????????????? | | ## ##+#####+###?????????????????????? | | ?# "|"|" # ? #??????????????????????? | | ?#""|"|""# """ """ #??????????????????????? | | ?######### """ """ #??????????????????????? | | ####?????# """ """ #??????????????????????? | | #?????# #?????????? #??????????? | | #?????# #????????? # "????????? | | #??###################### + "????????? | | " #### %%=g % #??????????? | | " + !%=% @ #??????????? | | #### = %=[ w #??????????? | | ####??# =%######;##############??????????? | | ####### #??# #????????????????????? | | #??# #????????????????????? | | #??# """ #????????????????????? | | #??# """ #????????????????????? | | ###### #??# """ #????????????????????? | | # =#??# #????????????????????? | | * # *%###########????????????????????? | | # !=[ #???????????????????????? | | + [* #???????????????????????? | | # "" !!! #???????????????????????? | | # "T !!! ##############??????????? | | # "" !!! #??????????? | | # < #??????????? | | ###+## ! #??????????? | | ??# =% #######+######??????????? | | ??# #?# #???????????? | | ??# #?# #???????????? | | ### ###+######+#### """ #???????????? | | + # """"" #???????????? | | ####### # """"" #???????????? | | ??????# """ """ """ # """"" #???????????? | | ??????# """ """ """ # """ #???????????? | +----------------------------------------------------+ Best States ------------- Heat Dissipation 39 Energy Generation 10 Energy Capacity 250 Matter Stores 300 Matter Capacity 300 Sight Range 16 Terrain Scan Density 10 Evasion (%) 50 Recoil Reduction 2 Item Schematics ----------------- None Robot Schematics ------------------ None Fabricated ------------ Nothing Repaired ---------- Nothing Studied --------- None Alien Tech Used ----------------- None Achievements -------------- None Challenges ------------ None Game ------ Seed LaunchBlanketRigger Manual? 0 Play Time 00:09:40 Cumulative 148.9 hours Start 2026.01.18 @ 19:34:28 End 2026.01.18 @ 19:42:24 Sessions 1 Manual Loads 0 Difficulty Rogue Special Mode None Game No. 87 Rogue 74 Adventurer 13 Explorer 0 Win Type - Total 1 Types 1/0/0/0/0/0/0/0/0/0 Lore% 41 Gallery% 39 Achievement% 26 Wizard Run 0 Options --------- Layout 1 ASCII 0 Keyboard 0 Movement Mouse Keybinds 0 Fullscreen 1 Font 24/Smallcaps Map View 50x35 Zoom Use 0% Tactical HUD 1 Map Filters NONE Filters NONE Steam 0 RUN: 745b0ca8-bb58-4d56-b46a-43825ef41d9c